bitfinex/quotes_BTCUSD_20241211
["timestamp","ask_amount","ask_price","bid_price","bid_amount"]
[1733938385906,5.73625146,100500.0,100490.0,1.35705861]
[1733938385907,5.71635146,100500.0,100490.0,1.35705861]
[1733938386129,5.64735145,100500.0,100490.0,1.35927557]
[1733938386846,5.54785145,100500.0,100490.0,1.62864124]
[1733938387059,5.44628402,100500.0,100490.0,1.62864124]
[1733938387702,5.44528402,100500.0,100490.0,1.62264124]
[1733938387979,5.42538402,100500.0,100490.0,1.6502686]
[1733938388164,5.34678402,100500.0,100490.0,1.6562686]
[1733938388367,5.34678402,100500.0,100490.0,1.71140914]
[1733938388567,5.34878402,100500.0,100490.0,1.86718835]
[1733938389109,5.34878402,100500.0,100490.0,1.87118835]
[1733938389110,5.24928402,100500.0,100490.0,1.87118835]
[1733938389522,5.24928402,100500.0,100490.0,1.86718835]
[1733938389799,5.25028402,100500.0,100490.0,1.86718835]
[1733938390079,5.23038402,100500.0,100490.0,2.04472416]
[1733938390359,4.89458402,100500.0,100490.0,2.17787602]
[1733938390612,4.75028458,100500.0,100490.0,1.94361159]
[1733938390865,4.75028458,100500.0,100490.0,1.94555446]
[1733938391081,4.64148457,100500.0,100490.0,1.94555446]
[1733938391280,4.58178457,100500.0,100490.0,2.24555446]
[1733938391486,4.54090289,100500.0,100490.0,2.24555446]
[1733938391687,4.54090289,100500.0,100490.0,2.24332018]
[1733938391898,4.54890289,100500.0,100490.0,2.06912892]
[1733938392122,4.52800289,100500.0,100490.0,2.06912892]
[1733938392452,4.44840289,100500.0,100490.0,2.0886316]
[1733938392859,4.44840289,100500.0,100490.0,2.07112892]
[1733938393082,4.34890289,100500.0,100490.0,1.84939597]
[1733938393282,4.34890289,100500.0,100490.0,2.06881812]
[1733938393486,4.35390289,100500.0,100490.0,2.06881812]
[1733938393658,4.35390289,100500.0,100490.0,2.0458307]
[1733938394068,4.31410289,100500.0,100490.0,2.0458307]
[1733938394275,4.25440289,100500.0,100490.0,2.0458307]
[1733938394889,4.25440289,100500.0,100490.0,2.35913755]
[1733938395122,4.17480289,100500.0,100490.0,2.58062259]
[1733938395325,4.15490289,100500.0,100490.0,2.58062259]
[1733938396123,3.98640288,100500.0,100490.0,2.58062259]
[1733938396280,3.98271596,100500.0,100490.0,2.58062259]
[1733938397193,3.88321596,100500.0,100490.0,2.58062259]
[1733938398087,3.80361596,100500.0,100490.0,2.58062259]
[1733938398292,3.78371596,100500.0,100490.0,2.58062259]
[1733938399173,3.66986996,100500.0,100490.0,2.58062259]
[1733938399329,3.66986996,100500.0,100490.0,2.55464659]
[1733938399560,3.66986996,100500.0,100490.0,3.07673559]
[1733938399966,3.63006996,100500.0,100490.0,3.07673559]
[1733938400193,3.57036996,100500.0,100490.0,3.07673559]
[1733938400364,3.47413924,100500.0,100490.0,3.07673559]
[1733938400564,3.35369339,100500.0,100490.0,3.24402002]
[1733938400745,3.35369339,100500.0,100490.0,3.2210326]
[1733938400947,3.24489338,100500.0,100490.0,3.1210326]
[1733938401166,3.14454338,100500.0,100490.0,3.1048896]
[1733938401367,2.93841338,100500.0,100490.0,3.23247702]
[1733938401599,2.92744114,100500.0,100490.0,3.23034393]
[1733938401791,2.92384722,100500.0,100490.0,3.22534393]
[1733938402010,2.80407116,100500.0,100490.0,2.95956188]
[1733938402213,2.79984733,100500.0,100490.0,2.95956188]
[1733938402406,2.79667733,100500.0,100490.0,3.35200569]
[1733938402688,2.78867733,100500.0,100490.0,3.35100569]
[1733938402879,2.79267733,100500.0,100490.0,3.35100569]
[1733938403041,2.71307733,100500.0,100490.0,3.32801827]
[1733938403250,2.69317733,100500.0,100490.0,2.93557446]
[1733938403455,2.69317733,100500.0,100490.0,2.93097446]
[1733938403615,2.68796984,100500.0,100490.0,2.81733294]
[1733938403817,2.68796984,100500.0,100490.0,2.79240804]
[1733938404016,2.60836984,100500.0,100490.0,2.7503524]
[1733938404245,2.58846984,100500.0,100490.0,2.8001084]
[1733938404645,2.58846984,100500.0,100490.0,2.6991154]
[1733938404840,2.58846984,100500.0,100490.0,2.98390304]
[1733938405065,2.48896984,100500.0,100490.0,2.7411361]
[1733938405704,2.48896984,100500.0,100490.0,2.96267711]
[1733938406109,2.36026983,100500.0,100490.0,2.96267711]
[1733938406329,2.32046983,100500.0,100490.0,2.96267711]
[1733938407158,2.30056983,100500.0,100490.0,2.96267711]
[1733938407575,2.26076983,100500.0,100490.0,2.96267711]
[1733938407872,2.22096983,100500.0,100490.0,2.65028711]
[1733938408028,2.16126983,100500.0,100490.0,2.65028711]
[1733938408255,2.12146983,100500.0,100490.0,2.65028711]
[1733938408475,2.12146983,100500.0,100490.0,2.50028711]
[1733938409080,2.06176983,100500.0,100490.0,2.67743844]
[1733938409285,2.02196983,100500.0,100490.0,2.67743844]
[1733938409492,2.02196983,100500.0,100490.0,2.50443844]
[1733938409698,2.02196983,100500.0,100490.0,2.32715638]
[1733938409908,2.02196983,100500.0,100490.0,1.8057461]
[1733938410159,2.02196983,100500.0,100490.0,1.9557461]
[1733938410398,2.06966983,100500.0,100490.0,1.2957461]
[1733938410600,2.06466983,100500.0,100490.0,1.2957461]
[1733938410802,2.06766983,100500.0,100490.0,1.2957461]
[1733938411012,2.00666982,100500.0,100490.0,1.2967461]
[1733938411215,2.00666982,100500.0,100490.0,1.4467461]
[1733938411432,2.00666982,100500.0,100490.0,1.2967461]
[1733938411648,2.08516982,100500.0,100490.0,1.2967461]
[1733938411861,2.08216982,100500.0,100490.0,1.2967461]
[1733938412270,2.08516982,100500.0,100490.0,1.2967461]
[1733938412477,2.07716982,100500.0,100490.0,0.8972396]
[1733938412683,2.08616982,100500.0,100490.0,0.7472396]
[1733938412894,2.07716982,100500.0,100490.0,0.7472396]
[1733938413105,2.07716982,100500.0,100490.0,0.8972396]
[1733938413337,2.07916982,100500.0,100490.0,0.8972396]
[1733938413545,2.07416982,100500.0,100490.0,0.8972396]
[1733938413951,2.07516982,100500.0,100490.0,0.8972396]
[1733938414408,2.07516982,100500.0,100490.0,1.0472396]
[1733938414831,2.07616982,100500.0,100490.0,1.0542396]
[1733938415934,2.09458952,100500.0,100490.0,1.0542396]
[1733938416136,2.02558951,100500.0,100490.0,1.0542396]
[1733938416339,2.00716981,100500.0,100490.0,1.2272396]
[1733938419197,2.00716981,100500.0,100490.0,1.0542396]
[1733938421286,1.9381698,100500.0,100490.0,1.0542396]
[1733938423402,1.9381698,100500.0,100490.0,0.80393115]
[1733938425488,1.9381698,100500.0,100490.0,0.9042396]
[1733938425729,1.9381698,100500.0,100490.0,1.0542396]
[1733938425953,1.9381698,100500.0,100490.0,1.3027469]
[1733938426157,1.86916979,100500.0,100490.0,1.3027469]
[1733938426374,1.86916979,100500.0,100490.0,1.0542396]
[1733938426781,1.86916979,100500.0,100490.0,1.2042396]
[1733938427773,1.86916979,100500.0,100490.0,1.2272396]
[1733938428006,1.54396979,100500.0,100490.0,1.6964983]
[1733938428215,1.54396979,100500.0,100490.0,2.00874891]
[1733938428560,1.54396979,100500.0,100490.0,1.69850175]
[1733938428772,1.54396979,100500.0,100490.0,1.47689663]
[1733938428973,1.54396979,100500.0,100490.0,1.69885385]
[1733938429127,1.44346979,100500.0,100490.0,1.87643151]
[1733938429328,1.44346979,100500.0,100490.0,1.87645674]
[1733938429530,1.45246979,100500.0,100490.0,1.69885385]
[1733938429760,1.45246979,100500.0,100490.0,1.87645242]
[1733938429941,1.43156979,100500.0,100490.0,1.86945242]
[1733938430142,1.37186979,100500.0,100490.0,1.69285385]
[1733938430350,1.35196979,100500.0,100490.0,1.69285385]
[1733938430761,1.35196979,100500.0,100490.0,1.69185385]
[1733938430919,1.35596979,100500.0,100490.0,1.69285385]
[1733938431118,1.24716978,100500.0,100490.0,1.69285385]
[1733938431362,1.22726978,100500.0,100490.0,1.69285385]
[1733938433917,1.22094835,100500.0,100490.0,1.69285385]
[1733938434264,1.22094835,100500.0,100490.0,1.85066731]
[1733938434418,1.22094835,100500.0,100490.0,1.8508486]
[1733938434831,1.23094835,100500.0,100490.0,1.8508486]
[1733938435753,1.22768076,100500.0,100490.0,1.8508486]
[1733938436075,1.15868075,100500.0,100490.0,1.8508486]
[1733938436914,1.15868075,100500.0,100490.0,1.84903427]
[1733938437117,1.15868075,100500.0,100490.0,1.86749617]
[1733938437765,1.05918075,100500.0,100490.0,1.68978285]
[1733938437978,1.05918075,100500.0,100490.0,2.08401278]
[1733938437979,1.03784075,100500.0,100490.0,2.08401278]
[1733938438191,0.95824075,100500.0,100490.0,2.16600711]
[1733938438402,0.95824075,100500.0,100490.0,2.50258411]
[1733938438620,0.95824075,100500.0,100490.0,2.49594552]
[1733938438821,0.95824075,100500.0,100490.0,2.50258413]
[1733938439049,0.89854075,100500.0,100490.0,1.87224122]
[1733938439258,0.85474075,100500.0,100490.0,1.87124122]
[1733938439466,0.84874075,100500.0,100490.0,1.46664122]
[1733938439689,0.84874075,100500.0,100490.0,1.73310507]
[1733938439943,0.84574075,100500.0,100490.0,1.73310507]
[1733938440402,0.83422764,100500.0,100490.0,1.73310507]
[1733938440609,0.84222764,100500.0,100490.0,1.73410507]
[1733938440823,0.76262764,100500.0,100490.0,1.73410507]
[1733938441032,0.62592763,100500.0,100490.0,1.73310507]
[1733938441248,0.57222763,100500.0,100490.0,1.73410507]
[1733938442293,0.55232763,100500.0,100490.0,1.73410507]
[1733938442498,0.51252763,100500.0,100490.0,1.73410507]
[1733938442703,0.47272763,100500.0,100490.0,1.73410507]
[1733938442858,0.47672763,100500.0,100490.0,1.73410507]
[1733938443265,0.45682763,100500.0,100490.0,1.73410507]
[1733938443845,0.45682763,100500.0,100490.0,1.46764122]
[1733938444045,0.45682763,100500.0,100490.0,1.6795896]
[1733938444262,0.45682763,100500.0,100490.0,1.53411523]
[1733938444474,0.53592763,100500.0,100490.0,1.81727414]
[1733938444658,0.53592763,100500.0,100490.0,1.68416315]
[1733938444863,0.53592763,100500.0,100490.0,1.50663752]
[1733938445118,0.53592763,100500.0,100490.0,1.33817562]
[1733938445495,0.52692763,100500.0,100490.0,1.35401671]
[1733938445901,0.52292763,100500.0,100490.0,1.20401671]
[1733938446121,0.45392762,100500.0,100490.0,1.35292723]
[1733938446341,0.50632762,100500.0,100490.0,0.95444343]
[1733938446803,0.50832762,100500.0,100490.0,0.95344343]
[1733938447164,0.49932762,100500.0,100490.0,0.95344343]
[1733938447342,0.50132762,100500.0,100490.0,0.95344343]
[1733938448283,0.50132762,100500.0,100490.0,0.80344343]
[1733938448478,0.50132762,100500.0,100490.0,0.59442453]
[1733938448655,0.50132762,100500.0,100490.0,0.61432653]
[1733938449745,0.50232762,100500.0,100490.0,0.67132653]
[1733938449961,0.50032762,100500.0,100490.0,0.67132653]
[1733938450171,0.50132762,100500.0,100490.0,0.67432653]
[1733938451131,0.43232761,100500.0,100490.0,0.67432653]
[1733938451906,0.43232761,100500.0,100490.0,0.77463498]
[1733938452109,0.43232761,100500.0,100490.0,1.02463498]
[1733938452310,0.43232761,100500.0,100490.0,1.36194943]
[1733938452647,0.43232761,100500.0,100490.0,1.3451621]
[1733938452875,0.43232761,100500.0,100490.0,1.522779]
[1733938453081,0.43232761,100500.0,100490.0,1.274273]
[1733938453293,0.43232761,100500.0,100490.0,1.6727755]
[1733938453704,0.43232761,100500.0,100490.0,1.91779585]
[1733938453918,0.43232761,100500.0,100490.0,1.84798455]
[1733938454125,0.43232761,100500.0,100490.0,1.67036765]
[1733938454325,0.43232761,100500.0,100490.0,1.44470772]
[1733938455384,0.43232761,100500.0,100490.0,1.71113307]
[1733938455593,0.43232761,100500.0,100490.0,1.70236532]
[1733938455776,0.43232761,100500.0,100490.0,1.70235518]
[1733938456012,0.3633276,100500.0,100490.0,1.83638764]
[1733938457701,0.3633276,100500.0,100490.0,1.65839724]
[1733938458317,0.3633276,100500.0,100490.0,1.83635738]
[1733938458521,0.3633276,100500.0,100490.0,1.65839724]
[1733938458928,0.3633276,100500.0,100490.0,1.83637362]
[1733938459386,0.3633276,100500.0,100490.0,1.83638535]
[1733938459613,0.39966036,100500.0,100490.0,1.49348335]
[1733938459826,0.81264005,100500.0,100490.0,0.00751893]
[1733938460068,0.1318,100480.0,100470.0,0.09045351]
[1733938460341,0.13279426,100480.0,100470.0,0.00144416]
[1733938460542,0.13279426,100480.0,100470.0,0.00045516]
[1733938461828,0.13579426,100480.0,100470.0,0.00045516]
[1733938462462,0.14079426,100480.0,100470.0,0.00045516]
[1733938464152,0.33983826,100480.0,100470.0,0.00045516]
[1733938464337,0.338844,100480.0,100470.0,0.00045516]
[1733938464614,0.1271,100470.0,100450.0,0.0013991]
[1733938464813,0.86410798,100460.0,100450.0,0.0013991]
[1733938465023,0.72649245,100460.0,100450.0,0.0013991]
[1733938465232,0.22740845,100460.0,100450.0,0.0004]
[1733938465669,0.1271,100460.0,100450.0,0.0004]
[1733938466099,0.1271,100460.0,100450.0,0.13156898]
[1733938466318,0.1271,100460.0,100450.0,0.13057345]
[1733938467779,0.1271,100460.0,100450.0,0.10070845]
[1733938468413,0.1271,100460.0,100450.0,0.25070845]
[1733938468833,0.12809426,100460.0,100450.0,0.1504]
[1733938469478,0.12809426,100460.0,100450.0,0.0004]
[1733938469903,0.32717826,100460.0,100450.0,0.0004]
[1733938470116,0.1271,100460.0,100450.0,0.0004]
[1733938470350,0.12809426,100460.0,100450.0,0.0004]
[1733938471861,0.32717826,100460.0,100450.0,0.0004]
[1733938472077,0.326184,100460.0,100450.0,0.0004]
[1733938472502,0.14431988,100460.0,100450.0,0.0004]
[1733938472707,0.1271,100460.0,100450.0,0.030265]
[1733938472916,0.1271,100460.0,100450.0,0.13086568]
[1733938473332,0.1271,100460.0,100450.0,0.28086568]
[1733938474203,0.1271,100460.0,100450.0,0.25100068]
[1733938474428,0.1271,100460.0,100450.0,0.29082068]
[1733938475276,0.1271,100460.0,100450.0,0.39082068]
[1733938475739,0.09785369,100470.0,100460.0,0.039816]
[1733938475962,0.0812,100470.0,100460.0,0.14111975]
[1733938476178,0.0812,100470.0,100460.0,0.14012445]
[1733938477213,0.0812,100470.0,100460.0,0.63781445]
[1733938477424,0.23792398,100470.0,100450.0,0.00069223]
[1733938477624,0.23030271,100460.0,100450.0,0.00069223]
[1733938477855,0.129,100460.0,100450.0,0.49840223]
[1733938478548,0.12999426,100460.0,100450.0,0.49840223]
[1733938479388,0.12999426,100460.0,100450.0,0.50040223]
[1733938479588,0.12999426,100460.0,100450.0,0.50140223]
[1733938479794,0.12999426,100460.0,100450.0,0.49940223]
[1733938480026,0.12999426,100460.0,100450.0,0.49840223]
[1733938480027,0.13199426,100460.0,100450.0,0.49840223]
[1733938480477,0.13299426,100460.0,100450.0,0.49840223]
[1733938483682,0.14985279,100460.0,100450.0,0.49840223]
[1733938488038,0.14985279,100460.0,100450.0,0.49840224]
[1733938489729,0.14985279,100460.0,100450.0,0.52826724]
[1733938489928,0.14885853,100460.0,100450.0,0.52826724]
[1733938490138,0.01985853,100460.0,100450.0,0.67826724]
[1733938492228,0.01985853,100460.0,100450.0,0.67826725]
[1733938493087,0.02085279,100460.0,100450.0,0.64840225]
[1733938496634,0.21993679,100460.0,100450.0,0.64840225]
[1733938496842,0.01985853,100460.0,100450.0,0.64840225]
[1733938497055,0.02085279,100460.0,100450.0,0.64840225]
[1733938498470,0.02085279,100460.0,100450.0,0.64840226]
[1733938500446,0.21993679,100460.0,100450.0,0.64840226]
[1733938500759,0.21894253,100460.0,100450.0,0.64840226]
[1733938502613,0.01985853,100460.0,100450.0,0.64840226]
[1733938502825,0.003,100460.0,100450.0,0.77857571]
[1733938503022,0.003,100460.0,100450.0,1.02857571]
[1733938503422,0.003,100460.0,100450.0,1.11251216]
[1733938503621,0.003,100460.0,100450.0,1.11473038]
[1733938503820,0.003,100460.0,100450.0,1.11473039]
[1733938504535,0.003,100460.0,100450.0,1.11251217]
[1733938504701,0.002,100460.0,100450.0,1.11251217]
[1733938504897,0.01743683,100480.0,100460.0,0.209721]
[1733938505179,0.01743683,100480.0,100470.0,0.029859]
[1733938505378,0.01743683,100480.0,100470.0,0.52781127]
[1733938505587,0.01743683,100480.0,100470.0,0.78255616]
[1733938505790,0.01743683,100480.0,100470.0,1.00765616]
[1733938506009,5.507e-05,100480.0,100470.0,1.15974663]
[1733938506208,0.56783505,100500.0,100480.0,0.029855]
[1733938506498,0.39028314,100500.0,100480.0,0.80791972]
[1733938506699,0.32607335,100500.0,100480.0,0.80791972]
[1733938506917,0.32607335,100500.0,100490.0,0.029853]
[1733938507124,0.32607335,100500.0,100490.0,0.03014527]
[1733938507759,0.32607335,100500.0,100490.0,0.52770527]
[1733938508394,0.2368276,100500.0,100490.0,0.52770527]
[1733938508625,0.2388276,100500.0,100490.0,0.52770527]
[1733938509443,0.2398276,100500.0,100490.0,0.52770527]
[1733938510327,0.2398276,100500.0,100490.0,0.77801372]
[1733938510554,0.2398276,100500.0,100490.0,1.00871372]
[1733938511168,0.2388276,100500.0,100490.0,1.00871372]
[1733938511378,0.2378276,100500.0,100490.0,1.00871372]
[1733938511592,0.2378276,100500.0,100490.0,1.15871372]
[1733938511795,0.2368276,100500.0,100490.0,1.16171372]
[1733938512004,0.2368276,100500.0,100490.0,1.15871372]
[1733938512243,0.2378276,100500.0,100490.0,1.41321101]
[1733938512890,0.2378276,100500.0,100490.0,1.41021101]
[1733938513094,0.2368276,100500.0,100490.0,1.40721101]
[1733938514177,0.2368276,100500.0,100490.0,1.56721101]
[1733938514386,0.2378276,100500.0,100490.0,1.56721101]
[1733938514819,0.2378276,100500.0,100490.0,1.59021101]
[1733938515240,0.2378276,100500.0,100490.0,1.60677571]
[1733938515241,0.1383276,100500.0,100490.0,1.60677571]
[1733938515454,0.1373276,100500.0,100490.0,1.60177571]
[1733938515668,0.1373276,100500.0,100490.0,1.57377571]
[1733938515880,0.1443276,100500.0,100490.0,1.57477571]
[1733938516136,0.07032759,100500.0,100490.0,1.57377571]
[1733938517214,0.07032759,100500.0,100490.0,1.15871371]
[1733938517635,0.07032759,100500.0,100490.0,1.00871371]
[1733938517851,0.07032759,100500.0,100490.0,0.96041371]
[1733938518061,0.07432759,100500.0,100490.0,0.63250941]
[1733938518888,0.06832759,100500.0,100490.0,0.60265641]
[1733938519107,0.06832759,100500.0,100490.0,0.53820096]
[1733938519742,0.05085525,100500.0,100490.0,0.53820096]
[1733938519949,0.05085525,100500.0,100490.0,0.50834796]
[1733938520992,0.06210675,100500.0,100490.0,0.50834796]
[1733938521207,0.06310101,100500.0,100490.0,0.50834796]
[1733938521425,0.06310101,100500.0,100490.0,0.65834796]
[1733938522657,0.06310101,100500.0,100490.0,0.68820096]
[1733938523637,0.06210675,100500.0,100490.0,0.88850941]
[1733938523842,0.06210675,100500.0,100490.0,0.8885094]
[1733938524076,0.06210675,100500.0,100490.0,1.0385094]
[1733938524289,0.06210675,100500.0,100490.0,1.1173094]
[1733938526114,0.01028259,100510.0,100500.0,0.15]
[1733938526363,0.08,100520.0,100500.0,0.7779587]
[1733938526543,0.08,100520.0,100500.0,0.78243007]
[1733938527286,0.08,100520.0,100510.0,0.029847]
[1733938527518,0.08,100520.0,100510.0,0.52759925]
[1733938528452,0.08010983,100520.0,100510.0,0.49775225]
[1733938528657,0.09636911,100520.0,100510.0,0.49775225]
[1733938528913,0.29632837,100520.0,100510.0,0.49775225]
[1733938529109,0.16726911,100520.0,100510.0,0.49775225]
[1733938529401,0.14726911,100520.0,100510.0,0.52759925]
[1733938530046,0.14726911,100520.0,100510.0,0.49775225]
[1733938530280,0.14826337,100520.0,100510.0,0.52759925]
[1733938530551,0.14726911,100520.0,100510.0,0.52759925]
[1733938530814,0.14426911,100520.0,100510.0,0.52759925]
[1733938531083,0.14326911,100520.0,100510.0,0.52859925]
[1733938531381,0.14326911,100520.0,100510.0,0.52759925]
[1733938531618,0.14426911,100520.0,100510.0,0.49775225]
[1733938531900,0.14626911,100520.0,100510.0,0.49775225]
[1733938532113,0.14426911,100520.0,100510.0,0.49775225]
[1733938532247,0.14826337,100520.0,100510.0,0.49775225]
[1733938533522,0.34722837,100520.0,100510.0,0.49775225]
[1733938533730,0.34623411,100520.0,100510.0,0.49775225]
[1733938535167,0.44654256,100520.0,100510.0,0.49775225]
[1733938535416,0.99654256,100520.0,100510.0,0.49775225]
[1733938536899,0.99654256,100520.0,100510.0,0.49775224]
[1733938537514,0.89623411,100520.0,100510.0,0.49775224]
[1733938537687,0.67426911,100520.0,100510.0,0.49775224]
[1733938537914,0.87323411,100520.0,100510.0,0.49775224]
[1733938538539,0.34623411,100520.0,100510.0,0.49775224]
[1733938538743,0.09936911,100520.0,100510.0,0.49775224]
[1733938538948,0.01936911,100520.0,100510.0,0.52759924]
[1733938539154,0.02036337,100520.0,100510.0,0.49775224]
[1733938540355,0.21932837,100520.0,100510.0,0.49775224]
[1733938540506,0.21833411,100520.0,100510.0,0.49775224]
[1733938540706,0.01936911,100520.0,100510.0,0.49775224]
[1733938540907,0.02036337,100520.0,100510.0,0.49775224]
[1733938541111,0.26812837,100520.0,100510.0,0.49775224]
[1733938541295,0.29013411,100520.0,100510.0,0.49775224]
[1733938541501,0.36563411,100520.0,100510.0,0.49775224]
[1733938541915,0.46594256,100520.0,100510.0,0.49775224]
[1733938544370,0.99294256,100520.0,100510.0,0.49775224]
[1733938548440,1.08195284,100520.0,100510.0,0.49775224]
[1733938550400,1.21546826,100520.0,100510.0,0.49775224]
[1733938550611,1.08195284,100520.0,100510.0,0.49775224]
[1733938550922,1.08213056,100520.0,100510.0,0.49775224]
[1733938551124,1.08213056,100520.0,100510.0,0.49775223]
[1733938551327,1.21591256,100520.0,100510.0,0.49775223]
[1733938551717,1.21599231,100520.0,100510.0,0.49775223]
[1733938552199,1.51878373,100520.0,100510.0,0.25527655]
[1733938552402,1.00958401,100520.0,100510.0,0.14548395]
[1733938552621,1.00958401,100520.0,100510.0,9.1e-07]
[1733938552622,1.2211962,100520.0,100510.0,9.1e-07]
[1733938552870,0.199064,100470.0,100460.0,0.53408632]
[1733938553079,0.20005826,100470.0,100460.0,0.53408632]
[1733938553493,0.00099426,100470.0,100460.0,0.53408632]
[1733938554324,0.20005826,100470.0,100460.0,0.53414139]
[1733938554946,0.20005826,100470.0,100460.0,0.68414139]
[1733938555150,0.00099426,100470.0,100460.0,0.68414139]
[1733938555356,0.00099426,100470.0,100460.0,0.5505743]
[1733938555556,0.00099426,100470.0,100460.0,0.5535743]
[1733938555992,0.430219,100500.0,100470.0,0.059717]
[1733938556199,0.594087,100510.0,100480.0,0.029855]
[1733938556402,0.00099426,100500.0,100480.0,0.029855]
[1733938556617,0.19999926,100500.0,100470.0,0.95431151]
[1733938556824,0.199025,100490.0,100470.0,0.79527236]
[1733938557028,0.00099426,100480.0,100470.0,0.79527236]
[1733938557237,0.00099426,100490.0,100470.0,0.79527236]
[1733938557479,0.00099426,100490.0,100470.0,0.79429006]
[1733938558140,0.00099426,100490.0,100470.0,0.79529006]
[1733938558384,0.00099426,100490.0,100470.0,0.79429006]
[1733938558788,0.00399426,100490.0,100470.0,0.79429006]
[1733938558991,0.00399426,100490.0,100470.0,0.82414906]
[1733938559232,0.003,100490.0,100480.0,0.029856]
[1733938559439,0.004,100490.0,100480.0,0.029856]
[1733938559647,0.004,100490.0,100470.0,0.95431551]
[1733938560258,0.003,100490.0,100470.0,0.95431551]
[1733938560571,0.004,100490.0,100470.0,0.95431551]
[1733938560774,0.004,100490.0,100470.0,0.92445651]
[1733938560928,0.004,100490.0,100470.0,0.92445551]
[1733938561137,0.203033,100490.0,100470.0,0.76443106]
[1733938561333,0.00099426,100480.0,100470.0,0.67448352]
[1733938561559,0.00099426,100480.0,100470.0,0.70434252]
[1733938562099,0.00099426,100480.0,100470.0,0.67448352]
[1733938562733,0.00099426,100480.0,100470.0,0.54185618]
[1733938563150,0.00099426,100480.0,100470.0,0.54285618]
[1733938563513,0.00099426,100480.0,100470.0,0.54301404]
[1733938564610,0.01690606,100480.0,100470.0,0.54301404]
[1733938564958,0.20003826,100480.0,100470.0,0.54301404]
[1733938565288,0.20003826,100480.0,100470.0,0.40306158]
[1733938565490,0.28073826,100480.0,100470.0,0.53679937]
[1733938565691,0.279744,100480.0,100470.0,0.53679937]
[1733938566090,0.279744,100480.0,100470.0,0.40206158]
[1733938566431,0.280744,100480.0,100470.0,0.53580203]
[1733938566906,0.280744,100480.0,100470.0,0.53480203]
[1733938567110,0.0817,100480.0,100470.0,0.53480203]
[1733938567316,0.01964461,100480.0,100470.0,0.33057099]
[1733938568138,0.02063887,100480.0,100470.0,0.30071199]
[1733938568340,0.01964461,100480.0,100470.0,0.33057099]
[1733938568545,0.02063887,100480.0,100470.0,0.33057099]
[1733938568741,0.01964461,100480.0,100470.0,0.33057099]
[1733938568941,0.01964461,100480.0,100470.0,0.48057099]
[1733938569609,0.01964461,100480.0,100470.0,0.74794538]
[1733938570040,0.01964461,100480.0,100470.0,0.71808638]
[1733938570278,0.01964461,100480.0,100470.0,0.45071199]
[1733938570490,0.01964461,100480.0,100470.0,0.40121905]
[1733938570491,0.21868861,100480.0,100470.0,0.40121905]
[1733938570699,0.21868861,100480.0,100470.0,0.5350322]
[1733938572207,0.21868861,100480.0,100470.0,0.53513449]
[1733938576518,0.38006021,100480.0,100470.0,0.53513449]
[1733938576756,0.349064,100470.0,100460.0,0.34296352]
[1733938576987,0.44927245,100470.0,100460.0,0.17831377]
[1733938577208,0.372084,100460.0,100450.0,0.07102972]
[1733938577439,0.47239245,100460.0,100450.0,0.07102972]
[1733938577647,0.47239245,100460.0,100450.0,0.24831991]
[1733938578499,0.47539245,100460.0,100450.0,0.2482867]
[1733938578914,0.47639245,100460.0,100450.0,0.2482867]
[1733938580615,1.00339245,100460.0,100450.0,0.2482867]
[1733938581032,1.00339245,100460.0,100450.0,0.17861674]
[1733938581667,0.44186629,100460.0,100450.0,0.17861674]
[1733938581880,0.75530199,100460.0,100450.0,0.17861674]
[1733938582123,0.75530199,100460.0,100450.0,0.14438007]
[1733938582579,0.199123,100440.0,100430.0,0.26870891]
[1733938582790,0.32342571,100440.0,100430.0,0.26870891]
[1733938583006,0.32243145,100440.0,100430.0,0.26772511]
[1733938583229,0.12330845,100440.0,100430.0,0.26772511]
[1733938583442,0.32342571,100440.0,100430.0,0.26772511]
[1733938583646,0.32243145,100440.0,100430.0,0.26772511]
[1733938583851,0.32243145,100440.0,100430.0,0.26972511]
[1733938584908,0.32243145,100440.0,100430.0,0.27072511]
[1733938586639,0.84943145,100440.0,100430.0,0.27072511]
[1733938586853,0.99943145,100440.0,100430.0,0.27072511]
[1733938587061,0.97663145,100440.0,100430.0,0.27072511]
[1733938587894,0.97663145,100440.0,100430.0,0.0034]
[1733938588099,1.12663145,100440.0,100430.0,0.0034]
[1733938588308,0.97663145,100440.0,100430.0,0.0034]
[1733938588539,0.97663145,100440.0,100430.0,0.00829724]
[1733938588734,0.97663145,100440.0,100430.0,0.0034]
[1733938588979,1.41325272,100440.0,100430.0,0.00829724]
[1733938589869,0.199163,100420.0,100410.0,0.001399]
[1733938590077,0.20015726,100420.0,100410.0,0.001399]
[1733938590292,0.32346571,100420.0,100410.0,0.0004]
[1733938590494,1.274471,100430.0,100410.0,0.0004]
[1733938590706,0.20015726,100420.0,100410.0,0.0004]
[1733938590913,0.32346571,100420.0,100410.0,0.0004]
[1733938591171,0.32247145,100420.0,100410.0,0.00595186]
[1733938591601,0.32247145,100420.0,100410.0,0.00095186]
[1733938592247,0.199183,100410.0,100400.0,0.07355186]
[1733938592496,0.20017726,100410.0,100400.0,0.07355186]
[1733938593111,0.22317726,100410.0,100400.0,0.07355186]
[1733938593314,0.222183,100410.0,100400.0,0.07355186]
[1733938594184,0.222183,100410.0,100400.0,0.07655186]
[1733938595213,0.222183,100410.0,100400.0,0.003]
[1733938596935,0.24209529,100410.0,100400.0,0.003]
[1733938597862,0.04291229,100410.0,100400.0,0.003]
[1733938598504,0.04390655,100410.0,100400.0,0.003]
[1733938598713,0.04291229,100410.0,100400.0,0.003]
[1733938598945,0.24308955,100410.0,100400.0,0.003]
[1733938599147,0.24209529,100410.0,100400.0,0.003]
[1733938600211,0.04291229,100410.0,100400.0,0.003]
[1733938600645,0.24308955,100410.0,100400.0,0.003]
[1733938600849,0.24209529,100410.0,100400.0,0.003]
[1733938602994,0.24209529,100410.0,100400.0,0.001]
[1733938603204,0.023,100400.0,100390.0,0.269327]
[1733938603619,0.023,100400.0,100390.0,0.268344]
[1733938603827,0.023,100400.0,100390.0,0.26853931]
[1733938604501,0.023,100400.0,100390.0,0.22969531]
[1733938604919,0.023,100400.0,100390.0,0.26953931]
[1733938605125,0.222203,100400.0,100390.0,0.07969531]
[1733938605996,0.222203,100400.0,100390.0,0.08169531]
[1733938605997,0.20230114,100400.0,100390.0,0.08169531]
[1733938606239,0.20019726,100400.0,100390.0,0.08169531]
[1733938606669,0.20019726,100400.0,100380.0,0.0436809]
[1733938606879,0.20019726,100400.0,100380.0,0.14398935]
[1733938607292,0.20019726,100400.0,100380.0,0.10414335]
[1733938607495,0.39941026,100400.0,100380.0,0.14399135]
[1733938607699,0.199203,100400.0,100380.0,0.14399135]
[1733938607903,0.20019726,100400.0,100380.0,0.14399135]
[1733938608127,0.20019726,100400.0,100380.0,0.14499135]
[1733938608762,0.20019726,100400.0,100380.0,0.14699135]
[1733938608970,0.39941226,100400.0,100380.0,0.10714335]
[1733938609179,0.199203,100400.0,100380.0,0.14699135]
[1733938609397,0.20019726,100400.0,100380.0,0.14699135]